bitfinex-derivatives/quotes_ETHF0:USTF0_20250831
["timestamp","ask_amount","ask_price","bid_price","bid_amount"]
[1756682745339,3.616,4409.2,4409.1,1.6417]
[1756682746041,4.7337,4409.2,4409.1,0.9878]
[1756682746340,3.616,4409.2,4409.1,1.8857]
[1756682747648,3.2078,4409.7,4409.6,1.6417]
[1756682747936,3.2078,4409.7,4409.6,1.8857]
[1756682748243,3.2078,4409.7,4409.6,5.8857]
[1756682749639,2.1368,4409.7,4409.6,5.8857]
[1756682749839,3.2078,4410.3,4410.2,0.6539]
[1756682750045,3.2078,4410.3,4410.2,1.8857]
[1756682751043,3.2078,4410.9,4410.2,0.8979]
[1756682751243,3.2078,4410.9,4410.8,1.6417]
[1756682751544,3.2078,4410.9,4410.8,1.8857]
[1756682751739,3.902,4410.9,4409.9,3.2078]
[1756682751944,3.902,4410.9,4409.7,40.8]
[1756682751945,4.9017,4410.9,4410.4,0.9878]
[1756682752146,4.9017,4410.9,4410.5,0.244]
[1756682752340,3.2078,4410.9,4410.8,1.6417]
[1756682753144,0.6942,4410.7,4410.6,0.9878]
[1756682753344,1.6939,4410.7,4410.6,0.9878]
[1756682753741,0.9997,4410.6,4410.5,0.244]
[1756682753943,1.6939,4410.6,4410.5,0.244]
[1756682754148,0.40806,4410.7,4410.5,1.8857]
[1756682754446,0.40806,4410.7,4410.6,1.6417]
[1756682756561,2.10196,4410.7,4410.6,0.6539]
[1756682756755,0.9997,4410.6,4410.5,0.244]
[1756682757057,0.9997,4410.6,4410.2,1.6417]
[1756682757058,1.10229,4410.3,4410.2,1.6417]
[1756682757258,1.10229,4410.3,4410.2,1.8857]
[1756682757458,2.10199,4410.3,4410.2,1.8857]
[1756682757760,0.40817,4409.5,4409.4,1.6417]
[1756682758059,0.40817,4409.5,4409.4,1.8857]
[1756682760859,2.10207,4409.5,4409.4,1.6417]
[1756682761060,2.10207,4409.5,4409.4,0.244]
[1756682761362,0.40817,4409.5,4409.4,1.8857]
[1756682762060,1.10237,4409.5,4409.4,1.8857]
[1756682762962,2.10207,4409.5,4409.4,1.8857]
[1756682764066,1.10237,4409.5,4409.4,1.8857]
[1756682764261,0.40817,4409.5,4409.4,1.8857]
[1756682765661,0.40816,4409.6,4409.4,1.8857]
[1756682765860,3.2078,4410.3,4410.2,1.6417]
[1756682766062,3.2078,4410.3,4410.2,1.8857]
[1756682767061,1.02011,4410.9,4410.8,0.6539]
[1756682767062,3.61584,4410.9,4410.8,0.6539]
[1756682767270,4.31004,4410.9,4410.8,1.8857]
[1756682767566,5.30974,4410.9,4410.8,1.8857]
[1756682769160,4.31004,4410.9,4410.8,1.8857]
[1756682769363,3.61584,4410.9,4410.8,1.8857]
[1756682769567,5.25994,4410.9,4410.8,1.8857]
[1756682770468,5.25994,4410.9,4410.0,40.8]
[1756682770469,0.40811,4410.1,4410.0,1.66]
[1756682770661,0.40811,4410.1,4410.0,1.904]
[1756682770868,4.22792,4410.9,4410.8,1.66]
[1756682770869,2.79969,4410.9,4410.8,1.66]
[1756682771062,3.47369,4410.9,4410.8,1.904]
[1756682771264,4.44379,4410.9,4410.8,1.904]
[1756682771464,4.44379,4410.9,4410.8,0.244]
[1756682773568,8.44379,4410.9,4409.8,1.0086]
[1756682773768,0.674,4410.0,4409.9,0.244]
[1756682773971,1.6441,4410.0,4409.9,1.904]
[1756682774267,1.6441,4410.0,4409.9,0.8954]
[1756682774476,1.6441,4410.0,4409.5,1.0086]
[1756682774674,1.6441,4410.0,4409.6,0.244]
[1756682775277,4.8519,4409.7,4409.6,0.244]
[1756682777475,4.8519,4409.7,4409.6,1.904]
[1756682777775,1.6441,4409.7,4409.6,1.904]
[1756682778071,1.6441,4410.1,4410.0,1.66]
[1756682778268,1.6441,4410.1,4410.0,1.904]
[1756682778468,1.6441,4410.1,4410.0,0.8954]
[1756682778770,1.6441,4410.1,4410.0,0.244]
[1756682779973,1.6441,4410.1,4410.0,0.8954]
[1756682780173,1.6441,4410.1,4410.0,0.244]
[1756682781377,2.05221,4410.1,4410.0,0.244]
[1756682782379,0.40817,4409.5,4409.4,1.0086]
[1756682782581,0.40815,4409.7,4409.6,1.66]
[1756682783070,2.05225,4409.7,4409.6,1.66]
[1756682783275,2.05225,4409.7,4409.6,0.6514]
[1756682783474,2.05227,4409.5,4409.4,0.244]
[1756682783675,2.05227,4409.5,4409.4,1.904]
[1756682784075,2.05227,4409.5,4409.4,0.244]
[1756682784783,2.05227,4409.5,4409.4,1.904]
[1756682785074,0.40814,4409.8,4409.6,0.6514]
[1756682785271,0.40814,4409.8,4409.7,1.66]
[1756682785778,0.40813,4410.0,4409.9,1.0086]
[1756682785976,0.40813,4410.0,4409.9,1.904]
[1756682786372,4.1779,4410.2,4409.9,1.904]
[1756682786578,3.2078,4410.2,4410.1,1.66]
[1756682786884,1.37817,4410.5,4410.4,0.6514]
[1756682787075,1.37817,4410.5,4410.4,1.904]
[1756682787382,2.05217,4410.5,4410.4,1.904]
[1756682788879,0.9701,4411.0,4410.7,1.0086]
[1756682789080,4.8519,4411.2,4411.1,0.6514]
[1756682789281,4.8519,4411.2,4411.1,1.66]
[1756682790885,3.8818,4411.2,4411.1,1.66]
[1756682791780,3.2078,4411.2,4411.1,1.66]
[1756682792682,0.9701,4411.6,4411.2,1.0086]
[1756682792878,0.674,4411.6,4411.5,1.66]
[1756682794285,1.6441,4411.6,4411.5,1.66]
[1756682796188,1.6441,4411.6,4411.5,1.84339607]
[1756682796389,3.2078,4411.7,4411.5,1.84339607]
[1756682796591,3.2078,4411.7,4411.6,1.66]
[1756682796987,4.8519,4411.7,4411.6,1.66]
[1756682797887,3.2078,4411.7,4411.6,1.66]
[1756682798284,0.9701,4412.1,4411.6,1.0086]
[1756682798494,1.6036,4412.1,4412.0,1.6683]
[1756682800183,0.6335,4412.1,4412.0,1.6683]
[1756682801191,0.6335,4412.1,4412.0,1.9113]
[1756682802395,1.6384,4412.1,4412.0,1.9113]
[1756682802580,1.6384,4412.1,4412.0,0.243]
[1756682805988,3.2078,4412.2,4411.5,40.8]
[1756682806190,1.6384,4411.7,4411.6,0.243]
[1756682808291,1.6384,4411.7,4410.8,33.06404]
[1756682808292,0.6335,4411.3,4410.8,32.656]
[1756682808590,1.6384,4410.9,4410.8,32.656]
[1756682808795,1.6384,4410.9,4410.8,32.799]
[1756682810194,1.6384,4410.9,4410.8,32.556]
[1756682810494,1.6384,4410.9,4410.8,32.799]
[1756682814084,1.6384,4410.9,4410.8,33.821]
[1756682814796,1.6384,4410.9,4410.8,32.799]
[1756682815192,5.6384,4410.9,4410.8,32.799]
[1756682815689,5.6384,4410.9,4410.8,0.243]
[1756682819194,1.6384,4410.9,4410.8,0.243]
[1756682819992,3.2078,4411.2,4410.8,1.9113]
[1756682820201,3.2078,4411.2,4411.1,1.6683]
[1756682821801,3.8413,4411.7,4411.6,0.6463]
[1756682822002,4.8462,4411.7,4411.6,0.8893]
[1756682822196,4.8462,4411.7,4411.6,1.9113]
[1756682822500,3.8413,4411.7,4411.6,1.9113]
[1756682823299,3.2078,4411.7,4411.6,5.9113]
[1756682824527,1.6384,4412.5,4412.4,0.6463]
[1756682824803,1.6384,4412.5,4412.4,1.9113]
[1756682826096,1.6384,4412.5,4412.4,0.8893]
[1756682826302,1.6384,4412.5,4412.4,0.243]
[1756682827004,1.6384,4411.7,4411.6,0.6463]
[1756682827197,1.6384,4411.7,4411.6,0.8893]
[1756682827604,1.6384,4411.7,4411.6,1.9113]
[1756682829503,1.6384,4411.7,4411.6,0.8893]
[1756682829902,1.6384,4411.7,4411.6,1.9154]
[1756682830101,1.0171,4412.1,4411.6,1.9154]
[1756682830301,0.662,4412.1,4412.0,0.6587]
[1756682830498,1.6791,4412.1,4412.0,1.9278]
[1756682832207,1.6791,4412.1,4412.0,0.9017]
[1756682833705,1.0171,4413.3,4412.1,1.0261]
[1756682833899,1.19334257,4414.3,4414.2,1.43383]
[1756682834109,1.0171,4415.7,4414.8,0.40767]
[1756682834309,3.2078,4416.3,4415.1,1.0261]
[1756682834699,3.2078,4416.3,4414.9,0.243]
[1756682834700,3.2078,4416.3,4415.5,3.2078]
[1756682835008,0.662,4415.7,4415.6,1.9278]
[1756682835200,4.662,4415.7,4415.6,0.243]
[1756682835404,7.8698,4415.7,4415.6,0.243]
[1756682836211,8.8869,4415.7,4415.6,0.243]
[1756682836600,8.8869,4415.7,4415.5,0.243]
[1756682836806,1.6791,4415.6,4415.5,0.243]
[1756682838908,1.6791,4415.6,4415.3,0.243]
[1756682839616,1.6791,4415.6,4414.6,1.0261]
[1756682840014,1.6791,4415.6,4414.8,1.0261]
[1756682842107,0.662,4415.0,4414.9,3.2078]
[1756682842309,1.6791,4415.0,4414.9,0.243]
[1756682842606,1.6791,4415.0,4414.9,1.9278]
[1756682843210,1.6791,4415.0,4414.5,1.0261]
[1756682843409,1.6791,4414.7,4414.6,1.2691]
[1756682843610,1.6791,4414.7,4414.6,1.9278]
[1756682843909,0.662,4414.7,4414.6,1.9278]
[1756682844411,1.6791,4414.7,4414.6,1.6848]
[1756682844605,1.6791,4414.7,4414.6,0.243]
[1756682845710,1.0171,4415.6,4414.7,1.0261]
[1756682845906,1.0171,4415.6,4414.9,1.0261]
[1756682846111,1.6791,4415.0,4414.9,1.6848]
[1756682846715,1.6791,4415.0,4414.9,0.243]
[1756682847313,1.0171,4414.9,4414.8,3.2078]
[1756682847614,1.6791,4414.9,4414.8,3.4508]
[1756682847814,1.6791,4414.9,4414.8,3.2078]
[1756682848016,1.6791,4414.9,4414.8,3.4508]
[1756682848212,1.6791,4414.9,4414.8,3.2078]
[1756682848414,1.6791,4414.4,4414.3,3.2078]
[1756682848618,1.6791,4414.4,4414.3,3.4508]
[1756682849315,1.6791,4414.4,4414.3,3.2078]
[1756682849514,1.6791,4414.4,4414.3,3.4508]
[1756682850820,1.6791,4414.4,4414.2,32.647]
[1756682851121,1.6791,4414.4,4414.3,0.243]
[1756682851317,1.0171,4413.4,4412.9,1.0261]
[1756682851519,1.0171,4413.4,4413.0,0.243]
[1756682851520,0.662,4413.4,4413.0,0.243]
[1756682851713,1.6791,4413.3,4412.9,3.2078]
[1756682852022,1.6791,4413.0,4412.9,0.243]
[1756682859929,1.0281,4413.6,4413.0,1.0305]
[1756682860127,1.6753,4413.6,4413.5,1.728]
[1756682860432,1.6753,4413.6,4413.5,0.243]
[1756682861230,1.0281,4413.5,4413.1,0.243]
[1756682861432,1.6753,4413.2,4413.1,0.243]
[1756682864228,1.6753,4413.2,4413.1,1.971]
[1756682864626,1.6753,4413.2,4413.1,0.243]
[1756682867034,1.6753,4413.2,4413.1,1.971]
[1756682868038,1.6753,4413.2,4413.1,0.9405]
[1756682868236,1.6753,4413.2,4413.1,0.243]
[1756682869037,1.6753,4413.2,4413.1,1.971]
[1756682869334,0.6472,4413.2,4413.1,1.971]
[1756682869736,3.2078,4413.8,4413.4,0.6975]
[1756682869932,0.6472,4413.6,4413.5,1.97]
[1756682870134,4.2359,4413.8,4413.5,0.9395]
[1756682870435,1.6753,4413.7,4413.6,1.728]
[1756682872448,3.2078,4413.8,4413.7,1.728]
[1756682872657,4.8831,4414.3,4414.2,0.6975]
[1756682873150,3.855,4414.3,4414.0,1.0305]
[1756682873343,1.6753,4414.1,4414.0,1.728]
[1756682873748,0.6472,4414.1,4413.5,0.242]
[1756682874049,0.6472,4413.1,4413.0,0.242]
[1756682874250,1.0281,4413.7,4413.1,1.0305]
[1756682874749,0.6472,4413.2,4413.1,1.728]
[1756682875147,1.6753,4413.8,4413.7,0.6975]
[1756682875647,1.6753,4413.8,4413.7,1.728]
[1756682877149,0.6472,4413.8,4413.7,1.728]
[1756682877356,4.8831,4414.3,4414.2,1.728]
[1756682878754,4.8831,4414.3,4414.2,1.97]
[1756682881148,3.2078,4414.3,4414.2,1.97]
[1756682881354,4.8831,4414.8,4414.7,1.728]
[1756682881659,3.2078,4414.8,4414.7,1.97]
[1756682882249,3.2078,4415.6,4415.5,1.728]
[1756682882453,3.2078,4415.6,4415.5,1.97]
[1756682884958,0.6472,4416.1,4416.0,1.728]
[1756682885153,0.6472,4416.1,4416.0,1.97]
[1756682885355,1.6753,4416.1,4416.0,1.97]
[1756682886054,0.6472,4414.6,4414.5,0.6975]
[1756682886260,1.0281,4414.8,4414.5,1.97]
[1756682886562,1.0281,4414.8,4414.7,1.728]
[1756682886752,1.6753,4414.8,4414.7,1.728]
[1756682887350,0.6472,4414.8,4414.7,1.728]
[1756682887557,0.6472,4414.9,4414.8,1.728]
[1756682887865,1.6753,4414.9,4414.8,1.728]
[1756682888058,0.9474,4415.7,4414.9,1.0186]
[1756682888261,1.6475,4415.7,4415.6,1.66]
[1756682888456,1.6475,4415.7,4415.6,1.902]
[1756682889353,1.6475,4415.7,4415.6,0.242]
[1756682889553,4.8553,4415.7,4415.2,1.0186]
[1756682889758,1.6475,4414.9,4414.8,4.8678]
[1756682889960,1.6475,4414.9,4414.8,5.1098]
[1756682890657,0.7001,4414.9,4414.3,4.2264]
[1756682890858,1.6475,4414.4,4414.3,4.8678]
[1756682891064,1.6475,4414.4,4414.3,0.242]
[1756682894662,1.6475,4414.4,4414.3,1.902]
[1756682894867,0.9474,4415.1,4414.4,1.0186]
[1756682895069,1.6475,4415.1,4415.0,0.6414]
[1756682895361,1.6475,4415.1,4414.4,1.0186]
[1756682895561,1.6475,4415.1,4414.5,0.242]
[1756682896268,1.6475,4414.6,4414.5,0.242]
[1756682900670,1.6475,4414.6,4413.2,4.2264]
[1756682900671,0.9474,4413.5,4413.2,4.2264]
[1756682900865,1.6475,4413.3,4413.2,3.2078]
[1756682901066,1.6475,4413.3,4413.2,3.4498]
[1756682901465,1.6475,4413.3,4413.2,1.902]
[1756682902171,1.6475,4413.3,4413.2,0.242]
[1756682905766,0.9474,4413.2,4412.7,0.242]
[1756682905972,1.6475,4412.8,4412.7,0.242]
[1756682906969,5.87412,4412.8,4411.7,3.2078]
[1756682907272,5.87412,4412.8,4411.1,3.04370942]
[1756682907273,0.9474,4412.3,4411.2,1.0186]
[1756682907871,0.7001,4411.3,4402.1,265.139]
[1756682908070,0.22668,4407.7,4406.6,1.0186]
[1756682908268,0.22668,4407.7,4405.2,3.2078]
[1756682908269,0.9474,4406.6,4405.2,3.2078]
[1756682908465,3.2078,4405.9,4405.3,0.242]
[1756682908667,3.2078,4405.4,4405.1,27.50614373]
[1756682908872,0.27372575,4405.3,4405.1,27.24025374]
[1756682909074,0.27372575,4405.2,4405.1,27.24025374]
[1756682909271,0.27372575,4405.2,4405.1,26.22165374]
[1756682909466,0.27372575,4405.2,4405.1,30.46465374]
[1756682909670,0.27372575,4405.2,4405.1,30.22165374]
[1756682909871,0.27372575,4405.2,4405.1,26.22165374]
[1756682910075,1.22112575,4405.2,4405.1,26.22165374]
[1756682910475,1.22112575,4405.2,4405.1,26.46465374]
[1756682911275,0.99028471,4405.2,4405.1,26.46465374]
[1756682911481,0.27372575,4405.2,4405.1,27.48325374]
[1756682911778,3.2078,4405.4,4405.1,26.46465374]
[1756682912079,0.22668,4405.2,4405.1,27.48325374]
[1756682912280,0.49132351,4405.2,4405.1,27.48325374]
[1756682912580,0.97932677,4405.2,4405.1,27.48325374]
[1756682913278,0.97932677,4405.2,4405.1,27.24025374]
[1756682913474,0.97932677,4405.2,4405.1,27.48425374]
[1756682913669,0.97932677,4405.2,4405.1,27.24025374]
[1756682913870,0.71468326,4405.2,4405.1,27.24025374]
[1756682914077,0.71468326,4405.2,4405.1,27.48425374]
[1756682915081,0.71468326,4405.2,4405.1,27.24025374]
[1756682915281,0.71468326,4405.2,4405.1,27.48425374]
[1756682916478,0.244,4407.3,4405.1,27.48425374]
[1756682916479,3.2078,4405.9,4405.2,1.2456]
[1756682916683,3.2078,4405.9,4405.4,1.0186]
[1756682916885,3.2078,4405.9,4405.6,1.0186]
[1756682917079,3.2078,4405.9,4405.8,1.0186]
[1756682917582,3.2078,4406.6,4405.8,4.22696999]
[1756682917782,3.2078,4406.6,4405.9,0.244]
[1756682917972,3.2078,4406.6,4406.0,0.244]
[1756682918176,3.2078,4406.6,4406.1,0.6447]
[1756682918381,3.2078,4406.6,4406.3,0.4007]
[1756682918783,3.2078,4406.6,4406.4,4.0]
[1756682918985,3.2078,4406.6,4406.5,0.4007]
[1756682919386,3.2078,4406.6,4406.5,0.6447]
[1756682919882,3.2078,4406.6,4406.5,0.4007]
[1756682920088,4.4136,4406.6,4406.5,0.244]
[1756682920578,3.2078,4406.6,4406.5,0.6447]
[1756682920776,3.47806333,4406.6,4406.5,0.6447]
[1756682920976,3.47806333,4406.6,4406.5,0.4007]
[1756682921184,4.68386333,4406.6,4406.5,0.6447]
[1756682921378,3.47806333,4406.6,4406.5,0.6447]
[1756682922186,0.27026333,4406.6,4406.5,0.6447]
[1756682922482,0.26789511,4406.6,4406.5,4.6447]
[1756682922781,3.2078,4407.5,4406.6,0.1328]
[1756682922990,3.2078,4407.5,4406.8,0.1328]
[1756682923185,3.2078,4407.5,4407.0,0.1328]
[1756682923386,0.4084,4407.1,4407.0,0.1328]
[1756682924389,0.4084,4407.1,4407.0,0.3768]
[1756682924684,1.02101,4407.0,4405.9,3.2472953]
[1756682924878,0.40849,4406.1,4406.0,32.8098]
[1756682925083,1.61429,4406.1,4406.0,32.92]
[1756682925586,0.40849,4406.1,4406.0,33.0528]
[1756682925782,3.2078,4407.0,4406.1,0.1328]
[1756682926592,1.2058,4406.9,4406.2,0.243]
[1756682926883,0.22668,4406.7,4406.2,0.3758]
[1756682927183,1.2058,4406.6,4406.2,0.3758]
[1756682927588,1.2058,4406.9,4406.2,0.3758]
[1756682927784,3.2078,4407.0,4406.2,0.1328]
[1756682927785,1.2058,4406.6,4406.2,0.1328]
[1756682927983,1.2058,4406.6,4406.3,0.243]
[1756682928185,1.2058,4406.9,4406.3,0.3758]
[1756682928385,0.71715504,4406.8,4406.3,0.3758]
[1756682928588,0.83055504,4406.7,4406.1,0.1328]
[1756682928794,0.71715504,4406.6,4406.3,0.1328]
[1756682929094,1.92295504,4406.5,4406.4,0.243]
[1756682929299,1.92295504,4406.5,4406.1,0.1328]
[1756682929300,1.2058,4406.4,4406.1,0.1328]
[1756682929490,0.71715504,4406.3,4406.2,0.3758]
[1756682930299,0.71715504,4406.3,4406.2,0.243]
[1756682930491,0.71715504,4406.3,4406.2,0.3758]
[1756682930698,0.71715504,4406.3,4406.2,4.3758]
[1756682931201,0.71715504,4406.3,4406.2,4.78428]
[1756682931596,0.71715504,4406.3,4406.2,4.54128]
[1756682932002,0.71715504,4406.3,4406.2,4.78528]
[1756682932201,1.90675069,4406.3,4406.2,4.78528]
[1756682932395,1.90675069,4406.3,4406.2,4.1328]
[1756682932594,0.71715504,4406.3,4406.2,4.3768]
[1756682932997,0.71715504,4406.3,4406.2,4.1328]
[1756682933303,0.71715504,4406.3,4406.2,4.3768]
[1756682933499,1.2058,4406.2,4405.5,32.68]
[1756682933707,0.71715504,4406.1,4405.9,0.1328]
[1756682933901,1.18405599,4406.3,4406.0,0.245]
[1756682934096,0.69557207,4406.2,4406.1,0.1328]
[1756682934701,0.91263844,4406.2,4406.1,0.1328]
[1756682935594,0.91263844,4406.2,4406.1,0.3778]
[1756682935797,2.11843844,4406.2,4406.1,0.245]
[1756682936202,3.30249443,4406.2,4405.8,44.0078]
[1756682936401,2.11843844,4406.1,4406.0,0.1328]
[1756682936608,2.11843844,4406.1,4405.9,0.1328]
[1756682936809,1.18405599,4406.2,4406.0,0.245]
[1756682937004,0.8900945,4406.1,4406.0,0.3778]
[1756682937805,0.8900945,4406.1,4406.0,0.3453]
[1756682938107,0.8900945,4406.1,4406.0,0.5903]
[1756682938504,0.7572945,4406.1,4406.0,4.5903]
[1756682938808,0.1134,4406.7,4406.5,0.40845]
[1756682939006,0.1134,4406.7,4406.6,3.4528]
[1756682940405,1.2058,4407.4,4406.6,3.4528]
[1756682940604,3.2078,4407.6,4406.6,3.4528]
[1756682940801,1.2058,4407.5,4407.2,0.40838]
[1756682941003,0.6761,4407.4,4407.3,32.925]
[1756682941203,1.2058,4408.1,4407.4,0.40836]
[1756682941404,1.2058,4407.9,4407.5,0.245]
[1756682941706,0.1134,4408.0,4407.5,0.245]
[1756682941907,4.0,4407.9,4407.3,32.68]
[1756682942109,1.8819,4407.4,4407.3,32.68]
[1756682942310,2.10858,4407.4,4407.3,32.925]
[1756682942610,5.8819,4407.4,4407.3,32.925]
[1756682943911,1.8819,4407.4,4407.3,32.925]
[1756682945710,1.8819,4407.4,4407.3,32.68]
[1756682945910,1.8819,4407.4,4407.3,32.925]
[1756682946908,5.8819,4407.4,4407.3,32.68]
[1756682947107,5.8819,4407.4,4407.3,32.925]
[1756682947313,5.8819,4407.4,4407.3,32.7037408]
[1756682948817,7.07769102,4407.4,4407.3,32.7037408]
[1756682949217,5.8819,4407.4,4407.3,32.7037408]
[1756682949515,1.8819,4407.4,4407.3,32.7037408]
[1756682949907,3.2078,4407.7,4407.3,32.4587408]
[1756682950112,1.183,4407.6,4407.3,32.7027408]
[1756682950310,3.2078,4407.7,4407.3,32.7027408]
[1756682950718,0.59561904,4407.6,4407.3,32.7027408]
[1756682951016,0.59561904,4407.5,4407.3,32.7027408]
[1756682951218,0.59561904,4407.4,4407.3,32.4587408]
[1756682951713,0.59561904,4407.4,4407.3,32.7027408]
[1756682952313,1.77861904,4407.4,4407.3,32.4587408]
[1756682952516,1.77861904,4407.4,4407.3,32.7027408]
[1756682955018,1.77861904,4407.4,4407.3,32.4587408]
[1756682955214,1.77861904,4407.4,4407.3,32.7027408]
[1756682955614,1.77861904,4407.4,4407.3,32.4587408]
[1756682955820,1.77861904,4407.4,4407.3,32.7027408]
[1756682956622,0.59561904,4407.4,4407.3,32.7027408]
[1756682957521,1.77861904,4407.4,4407.3,32.7027408]
[1756682958521,1.77861904,4407.4,4407.3,32.7017408]
[1756682960116,1.183,4407.4,4407.3,32.4587408]
[1756682960317,1.183,4407.4,4407.3,32.7017408]
[1756682961023,1.183,4407.6,4407.3,32.7017408]
[1756682961222,0.22668,4407.4,4407.3,32.7017408]
[1756682961721,1.183,4407.6,4407.3,32.7017408]
[1756682961914,1.40968,4407.4,4407.3,32.7017408]
[1756682962421,1.183,4407.4,4407.3,32.7017408]
[1756682962722,1.183,4407.4,4407.3,32.4587408]
[1756682962923,1.183,4407.4,4407.3,32.7017408]
[1756682963216,4.3908,4407.7,4407.3,32.7017408]
[1756682963423,0.22668,4407.4,4407.3,32.7017408]
[1756682963818,4.3908,4407.7,4407.3,32.7017408]
[1756682964120,0.22668,4407.4,4407.3,32.7017408]
[1756682964327,0.22668,4407.5,4407.3,32.7017408]
[1756682964525,3.2078,4407.7,4407.3,33.1101108]
[1756682964719,3.2078,4407.7,4407.3,32.7017408]
[1756682965725,3.43448,4407.7,4407.3,32.7017408]
[1756682966026,0.1134,4407.9,4407.8,0.40833]
[1756682966325,3.2078,4408.7,4408.1,0.4083]
[1756682966524,0.22668,4408.6,4408.2,0.243]
[1756682967522,4.0857,4408.7,4408.2,0.243]
[1756682967717,1.40968,4408.6,4408.2,0.243]
[1756682968222,3.3212,4408.7,4407.5,2.03799016]
[1756682968223,1.9475,4408.3,4407.5,2.03799016]
[1756682968528,1.9475,4407.7,4407.6,0.243]
[1756682968830,1.183,4407.6,4407.4,3.2078]
[1756682969023,1.183,4407.6,4407.5,0.243]
[1756682969328,1.183,4408.1,4407.5,0.243]
[1756682969530,1.183,4407.8,4407.5,0.243]
[1756682970428,1.183,4407.8,4407.5,0.65135]
[1756682971726,3.2078,4408.2,4407.5,0.65135]
[1756682971926,1.183,4407.7,4407.5,0.243]
[1756682972432,1.183,4407.7,4407.5,0.65135]
[1756682973030,1.183,4407.7,4407.6,0.243]
[1756682973424,1.183,4407.7,4407.6,0.40835]
[1756682973625,1.183,4407.7,4407.6,0.243]
[1756682974334,1.183,4407.7,4407.6,0.65135]
[1756682974630,3.2078,4408.2,4407.6,4.243]
[1756682974831,1.183,4408.3,4407.6,0.243]
[1756682975427,1.9475,4408.3,4407.6,0.243]
[1756682975630,0.7645,4408.3,4407.8,0.40832]
[1756682975830,1.183,4408.1,4407.9,0.65132]
[1756682976243,1.9475,4407.9,4407.8,0.40833]
[1756682976427,1.9475,4407.9,4407.8,0.243]
[1756682977231,1.9475,4407.9,4407.8,0.65133]
[1756682977828,1.183,4408.6,4408.1,0.40829]
[1756682978127,1.8668,4408.3,4408.2,0.243]
[1756682978530,2.09348,4408.3,4408.2,0.243]
[1756682980035,1.107,4408.2,4408.0,3.2078]
[1756682980337,1.8668,4408.1,4408.0,3.6161]
[1756682980633,1.8668,4408.1,4408.0,3.2078]
[1756682981134,1.8668,4408.1,4408.0,3.4508]
[1756682981530,1.8668,4408.1,4408.0,3.85911]
[1756682981936,1.8668,4408.1,4408.0,3.61611]
[1756682982135,1.8668,4408.1,4408.0,3.85911]
[1756682984946,1.8668,4408.4,4408.3,0.40828]
[1756682985134,1.8668,4408.4,4408.3,0.65128]
[1756682985633,1.8668,4408.4,4408.3,0.243]
[1756682987339,1.8668,4408.4,4408.3,0.65128]
[1756682990441,0.8732,4408.7,4408.3,0.243]
[1756682990634,1.61840492,4408.7,4408.6,4.10715]
[1756682990835,1.61840492,4408.7,4408.6,4.34915]
[1756682991038,1.61840492,4408.7,4408.6,45.14915]
[1756682992842,1.61840492,4408.7,4408.6,0.242]
[1756682993543,1.107,4408.7,4408.6,0.5442]
[1756682993745,1.8668,4408.7,4408.6,0.242]
[1756682994242,1.8668,4408.7,4408.2,41.20829]
[1756682994443,1.8668,4408.3,4408.2,40.8]
[1756682994643,1.8668,4408.3,4408.2,41.042]
[1756682995036,1.8668,4408.3,4408.2,41.45029]
[1756682995238,1.8668,4408.3,4408.2,41.042]
[1756682995439,1.8668,4408.3,4408.2,41.63919]
[1756682995639,1.8668,4408.3,4408.1,5.24579016]
[1756682995640,2.09348,4408.3,4408.1,5.24579016]
[1756682995846,1.8668,4408.2,4408.1,5.24579016]
[1756682996147,2.09348,4408.2,4408.1,5.48779016]
[1756682996350,1.8668,4408.2,4408.1,5.48779016]
[1756682996539,1.8668,4408.2,4408.1,5.89609016]
[1756682997044,1.8668,4408.2,4408.1,5.48779016]
[1756682997239,1.8668,4408.2,4408.1,5.73689016]
[1756682997445,1.8668,4408.2,4408.1,0.242]
[1756682999345,0.7598,4408.2,4407.8,2.44632016]
[1756682999534,2.09348,4407.9,4407.8,2.74852016]
[1756682999738,2.09348,4407.9,4407.8,2.99052016]
[1756682999952,1.8668,4407.9,4407.8,3.17942016]
[1756683000636,1.107,4407.9,4407.8,1.14143]
[1756683000946,1.8668,4407.9,4407.8,0.89943]
[1756683001144,1.8668,4407.9,4407.6,3.2078]
[1756683001145,0.7598,4407.9,4407.6,3.2078]
[1756683001344,2.09348,4407.7,4407.6,5.24576419]
[1756683001642,0.7598,4407.3,4407.2,32.668]
[1756683001847,2.09348,4407.3,4407.2,32.91]
[1756683002249,2.09348,4407.3,4407.2,32.668]
[1756683002448,2.09348,4407.3,4407.2,32.91]
[1756683003139,6.09348,4407.3,4407.2,32.668]
[1756683003339,9.30128,4407.3,4407.2,28.3256]
[1756683003541,9.52818001,4407.3,4407.2,27.0665]
[1756683003745,8.19450001,4407.3,4406.1,3.2078]
[1756683004042,0.22668,4406.2,4405.4,32.669]
[1756683004242,3.2078,4406.3,4405.5,1.0016]
[1756683004449,3.2078,4406.3,4405.4,32.669]
[1756683004649,3.2078,4406.3,4405.5,0.242]
[1756683004944,3.2078,4406.3,4405.4,32.669]
[1756683005248,3.43477,4406.3,4405.5,0.242]
[1756683005548,3.2078,4406.3,4405.5,0.242]
[1756683005742,0.22668,4405.6,4405.4,32.669]